[Event "Rapid del Mercoledì"]
[Site "Chess.com"]
[Date "2020.04.29"]
[Round "1"]
[White "crippo"]
[Black "paolo58pr"]
[Result "1-0"]
[WhiteElo "1461"]
[BlackElo "1115"]
[TimeControl "720+3"]
[EndTime "11:35:21 PDT"]
[Termination "crippo ha vinto per abbandono"]

1. e4 {[%clk 0:11:56.8]} 1... c5 {[%clk 0:11:58.5]} 2. Nc3 {[%clk 0:11:56.7]}
2... e5 {[%clk 0:11:58.3]} 3. Nf3 {[%clk 0:11:56.5]} 3... Nc6 {[%clk 0:11:58.1]}
4. a4 {[%clk 0:11:55.6]} 4... d6 {[%clk 0:11:59.5]} 5. Bc4 {[%clk 0:11:56.4]}
5... Nf6 {[%clk 0:11:57.5]} 6. d3 {[%clk 0:11:58.6]} 6... Be7 {[%clk 0:11:57.7]}
7. Bg5 {[%clk 0:12:00.1]} 7... O-O {[%clk 0:11:59.2]} 8. Qd2 {[%clk 0:12:01.2]}
8... Bg4 {[%clk 0:11:52.6]} 9. h3 {[%clk 0:12:01.7]} 9... Bxf3 {[%clk
0:11:53.3]} 10. gxf3 {[%clk 0:12:03.7]} 10... Nh5 {[%clk 0:11:50.9]} 11. Be3
{[%clk 0:12:04.2]} 11... Nd4 {[%clk 0:11:29.1]} 12. Bxd4 {[%clk 0:12:05.4]}
12... cxd4 {[%clk 0:11:28.8]} 13. Ne2 {[%clk 0:12:06.4]} 13... Bg5 {[%clk
0:11:27.2]} 14. Qb4 {[%clk 0:12:04]} 14... b6 {[%clk 0:11:22.4]} 15. Rg1 {[%clk
0:11:38.7]} 15... Nf4 {[%clk 0:11:12.8]} 16. Nxf4 {[%clk 0:11:38.8]} 16... Bxf4
{[%clk 0:11:09.9]} 17. Rg4 {[%clk 0:11:37.7]} 17... a5 {[%clk 0:11:04.1]} 18.
Qb3 {[%clk 0:11:37.9]} 18... Qf6 {[%clk 0:11:01.1]} 19. Ke2 {[%clk 0:11:38.5]}
19... Rab8 {[%clk 0:10:52.6]} 20. Rag1 {[%clk 0:11:38.9]} 20... g6 {[%clk
0:10:51.6]} 21. Qa2 {[%clk 0:11:37.1]} 21... h5 {[%clk 0:10:43.4]} 22. R4g2
{[%clk 0:11:35.9]} 22... Bh6 {[%clk 0:10:27.2]} 23. Rxg6+ {[%clk 0:11:35.6]} 1-0

[Event "Rapid del Mercoledì"]
[Site "Chess.com"]
[Date "2020.04.29"]
[Round "1"]
[White "Mrtre7"]
[Black "Carbon"]
[Result "0-1"]
[WhiteElo "1257"]
[BlackElo "1784"]
[TimeControl "720+3"]
[EndTime "11:46:46 PDT"]
[Termination "Carbon ha vinto per abbandono"]

1. d4 {[%clk 0:12:01.2]} 1... Nf6 {[%clk 0:12:00.3]} 2. c4 {[%clk 0:12:02.4]}
2... g6 {[%clk 0:12:01.9]} 3. Nc3 {[%clk 0:12:03.2]} 3... Bg7 {[%clk 0:12:03.4]}
4. e4 {[%clk 0:12:04.2]} 4... d6 {[%clk 0:12:05.2]} 5. Nf3 {[%clk 0:12:05]} 5...
O-O {[%clk 0:12:06.6]} 6. Be2 {[%clk 0:12:07.1]} 6... e5 {[%clk 0:12:07.9]} 7.
Be3 {[%clk 0:11:54.2]} 7... Ng4 {[%clk 0:12:06.8]} 8. Bg5 {[%clk 0:11:55.3]}
8... f6 {[%clk 0:12:07.6]} 9. Bd2 {[%clk 0:11:46.8]} 9... Nc6 {[%clk 0:10:52.3]}
10. d5 {[%clk 0:11:45.9]} 10... Ne7 {[%clk 0:10:52.1]} 11. O-O {[%clk
0:11:44.4]} 11... f5 {[%clk 0:10:51.8]} 12. h3 {[%clk 0:11:35.5]} 12... Nf6
{[%clk 0:10:52]} 13. Bd3 {[%clk 0:09:49.8]} 13... f4 {[%clk 0:10:43.9]} 14. b4
{[%clk 0:09:48.6]} 14... h6 {[%clk 0:10:33.3]} 15. c5 {[%clk 0:09:49.8]} 15...
g5 {[%clk 0:10:26.9]} 16. cxd6 {[%clk 0:09:50.6]} 16... cxd6 {[%clk 0:10:28.1]}
17. Rc1 {[%clk 0:08:25.4]} 17... Ng6 {[%clk 0:10:16.6]} 18. Nb5 {[%clk
0:08:23.1]} 18... Ne8 {[%clk 0:10:17.8]} 19. Na3 {[%clk 0:06:41]} 19... h5
{[%clk 0:09:11.9]} 20. b5 {[%clk 0:05:28.1]} 20... g4 {[%clk 0:09:07.3]} 21.
hxg4 {[%clk 0:05:29.3]} 21... hxg4 {[%clk 0:09:07.6]} 22. Nh2 {[%clk 0:05:24.5]}
22... Qh4 {[%clk 0:08:21.7]} 23. g3 {[%clk 0:04:50.5]} 23... fxg3 {[%clk
0:08:17.4]} 24. fxg3 {[%clk 0:04:06.8]} 24... Qxg3+ {[%clk 0:08:16.2]} 25. Kh1
{[%clk 0:04:08.4]} 25... Qxd3 {[%clk 0:07:52.2]} 26. Rxf8+ {[%clk 0:04:02.4]}
26... Bxf8 {[%clk 0:07:36.5]} 27. Nxg4 {[%clk 0:03:37.4]} 27... Qxe4+ {[%clk
0:07:34]} 0-1

[Event "Rapid del Mercoledì"]
[Site "Chess.com"]
[Date "2020.04.29"]
[Round "1"]
[White "pedrak"]
[Black "Delsoldato03"]
[Result "1-0"]
[WhiteElo "1648"]
[BlackElo "1246"]
[TimeControl "720+3"]
[EndTime "11:52:51 PDT"]
[Termination "pedrak ha vinto per abbandono"]

1. Nf3 {[%clk 0:12:02.9]} 1... Nf6 {[%clk 0:12:00.4]} 2. g3 {[%clk 0:12:03.8]}
2... d5 {[%clk 0:11:59.9]} 3. Bg2 {[%clk 0:12:05.1]} 3... c6 {[%clk 0:12:02.1]}
4. O-O {[%clk 0:12:06.4]} 4... Nbd7 {[%clk 0:12:00.4]} 5. d3 {[%clk 0:12:07.6]}
5... e5 {[%clk 0:12:02.5]} 6. Nbd2 {[%clk 0:12:06.1]} 6... Bc5 {[%clk
0:12:03.1]} 7. e4 {[%clk 0:12:05.1]} 7... dxe4 {[%clk 0:11:32.9]} 8. dxe4 {[%clk
0:12:05.8]} 8... O-O {[%clk 0:11:27.1]} 9. c3 {[%clk 0:12:07.1]} 9... Re8 {[%clk
0:11:22.3]} 10. Qc2 {[%clk 0:12:08]} 10... Nf8 {[%clk 0:11:15.6]} 11. h3 {[%clk
0:12:08.4]} 11... Ng6 {[%clk 0:11:15.8]} 12. Re1 {[%clk 0:12:08.6]} 12... Qb6
{[%clk 0:11:15.1]} 13. Nf1 {[%clk 0:12:06.1]} 13... Be6 {[%clk 0:11:04.6]} 14.
Be3 {[%clk 0:12:01.4]} 14... Rad8 {[%clk 0:10:53.4]} 15. Ng5 {[%clk 0:11:57.5]}
15... Bc8 {[%clk 0:10:37.6]} 16. b4 {[%clk 0:11:50.4]} 16... Bxe3 {[%clk
0:10:34.7]} 17. Nxe3 {[%clk 0:11:51.6]} 17... h6 {[%clk 0:10:36.2]} 18. Nf3
{[%clk 0:11:47.9]} 18... Be6 {[%clk 0:10:18.2]} 19. a3 {[%clk 0:11:45.1]} 19...
Rd7 {[%clk 0:09:57.8]} 20. Rad1 {[%clk 0:11:43.1]} 20... Red8 {[%clk 0:09:58.7]}
21. Rxd7 {[%clk 0:11:44.5]} 21... Rxd7 {[%clk 0:10:00.4]} 22. c4 {[%clk
0:11:43.2]} 22... a5 {[%clk 0:09:43.7]} 23. Rb1 {[%clk 0:11:09.1]} 23... axb4
{[%clk 0:09:35]} 24. axb4 {[%clk 0:11:10.2]} 24... Qd8 {[%clk 0:09:11.7]} 25. c5
{[%clk 0:11:03.1]} 25... Rd3 {[%clk 0:09:01.5]} 26. Bf1 {[%clk 0:10:59]} 26...
Rd7 {[%clk 0:08:28.9]} 27. Nc4 {[%clk 0:10:53.1]} 27... Bxc4 {[%clk 0:08:18.7]}
28. Bxc4 {[%clk 0:10:53.1]} 28... Ne8 {[%clk 0:07:48.2]} 29. Kg2 {[%clk
0:10:49.6]} 29... Nc7 {[%clk 0:07:48.5]} 30. Qc3 {[%clk 0:10:40.9]} 30... Qe7
{[%clk 0:07:41]} 31. Ra1 {[%clk 0:10:32]} 31... Ne6 {[%clk 0:07:25.2]} 32. Nxe5
{[%clk 0:10:19.7]} 32... Nxe5 {[%clk 0:07:10.3]} 33. Qxe5 {[%clk 0:10:20.9]}
33... Nc7 {[%clk 0:06:56]} 34. Qxe7 {[%clk 0:10:18.7]} 34... Rxe7 {[%clk
0:06:55.9]} 35. Re1 {[%clk 0:10:12.1]} 35... g6 {[%clk 0:06:38.9]} 36. f4 {[%clk
0:10:12.5]} 36... Kg7 {[%clk 0:06:40.2]} 37. Kf3 {[%clk 0:10:11]} 37... f6
{[%clk 0:06:28.4]} 38. Rd1 {[%clk 0:10:11.9]} 38... Ne8 {[%clk 0:05:46.6]} 39.
Rd8 {[%clk 0:10:05.2]} 39... g5 {[%clk 0:05:19.1]} 40. f5 {[%clk 0:09:33.2]}
40... h5 {[%clk 0:05:06.2]} 41. Be6 {[%clk 0:09:33.4]} 41... Nc7 {[%clk
0:04:29.3]} 42. Rd7 {[%clk 0:09:34.1]} 42... Rxd7 {[%clk 0:04:24.3]} 43. Bxd7
{[%clk 0:09:35.7]} 43... Na6 {[%clk 0:04:24.3]} 44. Bc8 {[%clk 0:09:35.3]} 44...
Nxb4 {[%clk 0:04:19.3]} 45. Bxb7 {[%clk 0:09:36.8]} 45... Nd3 {[%clk 0:04:19.6]}
46. Bxc6 {[%clk 0:09:36.7]} 46... Nxc5 {[%clk 0:04:21.4]} 47. Bd5 {[%clk
0:09:36.4]} 47... Nd7 {[%clk 0:04:20.3]} 48. Ke3 {[%clk 0:09:37.2]} 48... Ne5
{[%clk 0:04:21.6]} 49. Bb3 {[%clk 0:09:33.7]} 49... Kh6 {[%clk 0:04:02.4]} 50.
Bd1 {[%clk 0:09:34.2]} 50... h4 {[%clk 0:03:51.7]} 51. gxh4 {[%clk 0:09:32.3]}
51... gxh4 {[%clk 0:03:51.8]} 52. Kf4 {[%clk 0:09:31.5]} 52... Nc4 {[%clk
0:03:19.5]} 53. Be2 {[%clk 0:09:22.5]} 53... Ne5 {[%clk 0:03:02.7]} 54. Bb5
{[%clk 0:09:18.7]} 54... Kh5 {[%clk 0:02:54.7]} 55. Be8+ {[%clk 0:09:19.7]}
55... Kh6 {[%clk 0:02:56.1]} 56. Ke3 {[%clk 0:09:16.8]} 56... Kg5 {[%clk
0:02:51.6]} 57. Ba4 {[%clk 0:09:08.4]} 57... Kh6 {[%clk 0:02:49.7]} 58. Kf4
{[%clk 0:09:08.9]} 58... Kh5 {[%clk 0:02:48]} 59. Bd1+ {[%clk 0:09:08.1]} 59...
Kh6 {[%clk 0:02:49.3]} 60. Bg4 {[%clk 0:09:07.3]} 60... Kg7 {[%clk 0:02:44.6]}
61. Ke3 {[%clk 0:09:07.4]} 61... Kh6 {[%clk 0:02:45.7]} 62. Kd4 {[%clk
0:09:01.9]} 62... Kg5 {[%clk 0:02:37.8]} 63. Bd1 {[%clk 0:09:01]} 63... Kf4
{[%clk 0:02:35.7]} 64. Kd5 {[%clk 0:09:03]} 64... Kg5 {[%clk 0:02:32.1]} 65. Ke6
{[%clk 0:09:02.6]} 65... Kf4 {[%clk 0:02:18.9]} 66. Kxf6 {[%clk 0:09:02.7]}
66... Kxe4 {[%clk 0:02:18.7]} 67. Kg5 {[%clk 0:09:04.3]} 67... Nf7+ {[%clk
0:02:11.9]} 68. Kg6 {[%clk 0:08:59.3]} 68... Ne5+ {[%clk 0:02:10.9]} 69. Kf6
{[%clk 0:09:00.6]} 69... Kf4 {[%clk 0:01:59.4]} 70. Ke6 {[%clk 0:09:00.3]} 70...
Kg5 {[%clk 0:01:55]} 71. f6 {[%clk 0:08:57.6]} 71... Ng6 {[%clk 0:01:50.4]} 72.
Bc2 {[%clk 0:08:53]} 72... Nh8 {[%clk 0:01:43.4]} 73. f7 {[%clk 0:08:52.2]}
73... Nxf7 {[%clk 0:01:44]} 74. Kxf7 {[%clk 0:08:53.6]} 74... Kf4 {[%clk
0:01:45.5]} 75. Ba4 {[%clk 0:08:54.9]} 75... Kg3 {[%clk 0:01:47.2]} 76. Bd7
{[%clk 0:08:56.4]} 76... Kf4 {[%clk 0:01:45.6]} 77. Kf6 {[%clk 0:08:58]} 77...
Kf3 {[%clk 0:01:44.1]} 78. Kg5 {[%clk 0:08:59.6]} 78... Kg3 {[%clk 0:01:39.5]}
79. Be6 {[%clk 0:09:00.1]} 1-0

[Event "Rapid del Mercoledì"]
[Site "Chess.com"]
[Date "2020.04.29"]
[Round "1"]
[White "sirmale49"]
[Black "fausto2p"]
[Result "1-0"]
[WhiteElo "1421"]
[BlackElo "1010"]
[TimeControl "720+3"]
[EndTime "11:55:24 PDT"]
[Termination "sirmale49 ha vinto per tempo"]

1. e4 {[%clk 0:11:49.4]} 1... e6 {[%clk 0:12:00.6]} 2. f4 {[%clk 0:11:50.5]}
2... d5 {[%clk 0:11:47.5]} 3. e5 {[%clk 0:11:51.3]} 3... c5 {[%clk 0:11:43.8]}
4. Nf3 {[%clk 0:11:50.9]} 4... h6 {[%clk 0:11:37]} 5. d4 {[%clk 0:11:51.7]} 5...
Nc6 {[%clk 0:11:35.7]} 6. Bb5 {[%clk 0:11:49.1]} 6... Bd7 {[%clk 0:11:32.7]} 7.
Nc3 {[%clk 0:11:44.9]} 7... a6 {[%clk 0:11:33.8]} 8. Bxc6 {[%clk 0:11:45.3]}
8... Bxc6 {[%clk 0:11:32]} 9. O-O {[%clk 0:11:42.2]} 9... Ne7 {[%clk 0:11:29.8]}
10. g4 {[%clk 0:11:40.8]} 10... b5 {[%clk 0:10:30.2]} 11. dxc5 {[%clk
0:11:41.6]} 11... Ng6 {[%clk 0:10:22.3]} 12. Be3 {[%clk 0:11:30]} 12... b4
{[%clk 0:10:07.6]} 13. Ne2 {[%clk 0:11:17.9]} 13... Bb5 {[%clk 0:10:05.8]} 14.
Nfd4 {[%clk 0:11:05.3]} 14... Bxc5 {[%clk 0:09:55.4]} 15. c3 {[%clk 0:10:08.7]}
15... a5 {[%clk 0:09:34.6]} 16. Kh1 {[%clk 0:09:29]} 16... Bxd4 {[%clk
0:09:14.3]} 17. Bxd4 {[%clk 0:09:00.5]} 17... Rc8 {[%clk 0:08:34.9]} 18. Rg1
{[%clk 0:08:50.8]} 18... Bxe2 {[%clk 0:08:21.6]} 19. Qxe2 {[%clk 0:08:47.7]}
19... Nxf4 {[%clk 0:08:22.2]} 20. Qb5+ {[%clk 0:08:47]} 20... Qd7 {[%clk
0:07:59.7]} 21. Qxd7+ {[%clk 0:08:24.7]} 21... Kxd7 {[%clk 0:07:59.6]} 22. Rgf1
{[%clk 0:08:17.2]} 22... Nd3 {[%clk 0:06:44.5]} 23. Rxf7+ {[%clk 0:08:15.1]}
23... Kc6 {[%clk 0:06:37.5]} 24. cxb4 {[%clk 0:07:46.9]} 24... axb4 {[%clk
0:06:32.4]} 25. Rf3 {[%clk 0:07:38.8]} 25... Nc5 {[%clk 0:05:58.5]} 26. Rc1
{[%clk 0:07:32.9]} 26... Kb5 {[%clk 0:05:57]} 27. Rf7 {[%clk 0:07:04.9]} 27...
g5 {[%clk 0:05:37.1]} 28. Re7 {[%clk 0:06:54.7]} 28... Rhf8 {[%clk 0:04:35.3]}
29. Bxc5 {[%clk 0:06:53]} 29... Rxc5 {[%clk 0:04:35]} 30. Rxc5+ {[%clk
0:06:53.1]} 30... Kxc5 {[%clk 0:04:35.8]} 31. Rxe6 {[%clk 0:06:54.4]} 31... Rf4
{[%clk 0:04:19.3]} 32. h3 {[%clk 0:06:51.1]} 32... Re4 {[%clk 0:04:00.2]} 33.
Re8 {[%clk 0:06:22.6]} 33... d4 {[%clk 0:03:53.3]} 34. Kg1 {[%clk 0:06:13.6]}
34... d3 {[%clk 0:03:46.7]} 35. Kf2 {[%clk 0:06:05.9]} 35... d2 {[%clk
0:03:37.9]} 36. Rd8 {[%clk 0:06:01.7]} 36... Rxe5 {[%clk 0:02:16.1]} 37. Rxd2
{[%clk 0:05:59.5]} 37... Re4 {[%clk 0:01:34.6]} 38. b3 {[%clk 0:05:57.7]} 38...
Rf4+ {[%clk 0:01:17.5]} 39. Kg3 {[%clk 0:05:42.3]} 39... Rf1 {[%clk 0:01:15.4]}
40. Rc2+ {[%clk 0:05:35.2]} 40... Kb5 {[%clk 0:01:14.9]} 41. Kg2 {[%clk
0:05:32.6]} 41... Rf4 {[%clk 0:01:09.4]} 42. Rc8 {[%clk 0:05:20]} 42... Rf6
{[%clk 0:01:00.4]} 43. Kg3 {[%clk 0:05:15.9]} 43... Rf1 {[%clk 0:00:55.3]} 44.
Rc2 {[%clk 0:05:01.3]} 44... Rf6 {[%clk 0:00:49.8]} 45. h4 {[%clk 0:05:01.3]}
45... Rf4 {[%clk 0:00:30.8]} 46. hxg5 {[%clk 0:05:00.6]} 46... hxg5 {[%clk
0:00:32]} 47. Re2 {[%clk 0:04:53.2]} 47... Rf1 {[%clk 0:00:11.8]} 48. Re5+
{[%clk 0:04:53.7]} 48... Kc6 {[%clk 0:00:10.9]} 49. Rxg5 {[%clk 0:04:52.9]}
49... Ra1 {[%clk 0:00:12]} 50. Ra5 {[%clk 0:04:51.5]} 50... Kb6 {[%clk
0:00:10.5]} 51. Ra4 {[%clk 0:04:52.4]} 1-0

[Event "Rapid del Mercoledì"]
[Site "Chess.com"]
[Date "2020.04.29"]
[Round "1"]
[White "moha1812med"]
[Black "Luca090267"]
[Result "0-1"]
[WhiteElo "1018"]
[BlackElo "1447"]
[TimeControl "720+3"]
[EndTime "11:58:44 PDT"]
[Termination "Luca090267 ha vinto per abbandono"]

1. d4 {[%clk 0:11:56.1]} 1... Nf6 {[%clk 0:12:01]} 2. c4 {[%clk 0:11:56.3]} 2...
g6 {[%clk 0:12:02.2]} 3. Nc3 {[%clk 0:11:49.4]} 3... Bg7 {[%clk 0:12:03.7]} 4.
e4 {[%clk 0:11:50.7]} 4... d6 {[%clk 0:12:05]} 5. Nf3 {[%clk 0:11:50.2]} 5...
O-O {[%clk 0:12:06.7]} 6. Be2 {[%clk 0:11:50.7]} 6... e5 {[%clk 0:12:03.4]} 7.
d5 {[%clk 0:11:50.6]} 7... a5 {[%clk 0:11:49.7]} 8. O-O {[%clk 0:11:42.7]} 8...
Nbd7 {[%clk 0:11:51.6]} 9. Qc2 {[%clk 0:11:41.7]} 9... Nc5 {[%clk 0:11:52.8]}
10. h3 {[%clk 0:11:40.3]} 10... Ne8 {[%clk 0:11:22.6]} 11. Bg5 {[%clk
0:11:06.8]} 11... f6 {[%clk 0:11:19.3]} 12. Be3 {[%clk 0:11:03.1]} 12... h6
{[%clk 0:11:14.9]} 13. Rad1 {[%clk 0:10:15.6]} 13... b6 {[%clk 0:11:13.6]} 14.
a3 {[%clk 0:10:08.4]} 14... Kh7 {[%clk 0:11:13.3]} 15. b4 {[%clk 0:10:08.9]}
15... axb4 {[%clk 0:11:13.6]} 16. axb4 {[%clk 0:10:09.4]} 16... Nb7 {[%clk
0:11:11.2]} 17. c5 {[%clk 0:09:32]} 17... bxc5 {[%clk 0:11:06.1]} 18. bxc5
{[%clk 0:09:32.6]} 18... f5 {[%clk 0:10:47.9]} 19. c6 {[%clk 0:09:02]} 19... Na5
{[%clk 0:10:32.3]} 20. exf5 {[%clk 0:08:52]} 20... Bxf5 {[%clk 0:10:33.5]} 21.
Bd3 {[%clk 0:08:44.6]} 21... Nc4 {[%clk 0:10:00.1]} 22. Bxf5 {[%clk 0:08:29.1]}
22... gxf5 {[%clk 0:09:50.5]} 23. Qb3 {[%clk 0:08:26.7]} 23... Nxe3 {[%clk
0:09:24.6]} 24. fxe3 {[%clk 0:08:26.5]} 24... Rb8 {[%clk 0:09:01.3]} 25. Qc2
{[%clk 0:07:54.3]} 25... Kh8 {[%clk 0:08:54.8]} 26. Rb1 {[%clk 0:06:38.2]} 26...
f4 {[%clk 0:07:37.2]} 27. Rxb8 {[%clk 0:06:18.8]} 27... Qxb8 {[%clk 0:07:37.2]}
28. Rb1 {[%clk 0:06:20.5]} 28... Qa7 {[%clk 0:06:45.6]} 29. Nd1 {[%clk
0:05:49.9]} 29... fxe3 {[%clk 0:06:41.9]} 30. Rb7 {[%clk 0:05:49.7]} 30... Qa3
{[%clk 0:06:10.8]} 31. Qe2 {[%clk 0:05:17.3]} 31... e4 {[%clk 0:05:41.2]} 32.
Nh4 {[%clk 0:05:01.8]} 32... Kh7 {[%clk 0:05:11.4]} 33. Nxe3 {[%clk 0:04:54.7]}
33... Bd4 {[%clk 0:04:44.2]} 34. Kh2 {[%clk 0:03:37]} 34... Qxe3 {[%clk
0:04:32.6]} 35. Qxe3 {[%clk 0:03:12.5]} 35... Bxe3 {[%clk 0:04:33.2]} 36. Kg3
{[%clk 0:03:05.6]} 36... Bf2+ {[%clk 0:04:16.2]} 37. Kg4 {[%clk 0:03:01.8]}
37... Nf6+ {[%clk 0:03:34.6]} 38. Kf4 {[%clk 0:02:25.4]} 38... Bxh4 {[%clk
0:03:06.2]} 39. Rxc7+ {[%clk 0:02:21.6]} 39... Kg8 {[%clk 0:03:01.6]} 40. Rb7
{[%clk 0:02:19]} 40... Bg5+ {[%clk 0:02:54.5]} 41. Kg3 {[%clk 0:02:09.3]} 41...
Nxd5 {[%clk 0:02:49.1]} 42. c7 {[%clk 0:01:56.3]} 42... Nxc7 {[%clk 0:02:26.4]}
43. Rxc7 {[%clk 0:01:56.7]} 43... d5 {[%clk 0:02:25.2]} 44. Rc6 {[%clk
0:01:55.3]} 44... Kg7 {[%clk 0:02:01.5]} 45. h4 {[%clk 0:01:48.9]} 45... Bf6
{[%clk 0:01:52.1]} 46. Re6 {[%clk 0:01:47.7]} 46... Kf7 {[%clk 0:01:45.1]} 47.
Ra6 {[%clk 0:01:45.3]} 47... d4 {[%clk 0:01:40.4]} 48. Ra4 {[%clk 0:01:33.1]}
48... Re8 {[%clk 0:01:38.8]} 49. Ra7+ {[%clk 0:01:21.1]} 49... Kg6 {[%clk
0:01:35.7]} 50. Kg4 {[%clk 0:01:15.4]} 50... Re7 {[%clk 0:01:21.3]} 51. h5+
{[%clk 0:01:09.9]} 51... Kf7 {[%clk 0:01:21.6]} 52. Ra4 {[%clk 0:00:40.1]} 52...
e3 {[%clk 0:01:22.3]} 53. Ra1 {[%clk 0:00:37.2]} 53... e2 {[%clk 0:01:09.3]} 0-1

[Event "Rapid del Mercoledì"]
[Site "Chess.com"]
[Date "2020.04.29"]
[Round "1"]
[White "SanSecondoPR"]
[Black "laremaro"]
[Result "0-1"]
[WhiteElo "1240"]
[BlackElo "1592"]
[TimeControl "720+3"]
[EndTime "11:58:51 PDT"]
[Termination "laremaro ha vinto per tempo"]

1. e4 {[%clk 0:12:00.8]} 1... d5 {[%clk 0:11:53.1]} 2. Nf3 {[%clk 0:12:00.1]}
2... dxe4 {[%clk 0:11:54.3]} 3. Ng5 {[%clk 0:12:00.9]} 3... Nf6 {[%clk
0:11:54.1]} 4. d3 {[%clk 0:12:00.8]} 4... b6 {[%clk 0:11:39]} 5. Nc3 {[%clk
0:11:58]} 5... Bb7 {[%clk 0:11:37.3]} 6. Bf4 {[%clk 0:11:55.6]} 6... h6 {[%clk
0:11:12.5]} 7. Ngxe4 {[%clk 0:11:55]} 7... Nxe4 {[%clk 0:11:12.1]} 8. Nxe4
{[%clk 0:11:50.8]} 8... e6 {[%clk 0:10:59.8]} 9. Be2 {[%clk 0:11:27.8]} 9... Be7
{[%clk 0:10:45.6]} 10. O-O {[%clk 0:11:25]} 10... Nd7 {[%clk 0:10:42.9]} 11. Bf3
{[%clk 0:11:18.3]} 11... O-O {[%clk 0:10:16.3]} 12. Qe2 {[%clk 0:11:07.7]} 12...
Rb8 {[%clk 0:09:13.6]} 13. Rad1 {[%clk 0:10:57.9]} 13... Nc5 {[%clk 0:09:01.5]}
14. a3 {[%clk 0:10:35.5]} 14... Nxe4 {[%clk 0:07:42.7]} 15. dxe4 {[%clk
0:10:29]} 15... Qc8 {[%clk 0:07:42.8]} 16. Rfe1 {[%clk 0:10:15.5]} 16... Rd8
{[%clk 0:07:44.6]} 17. Qc4 {[%clk 0:10:00.5]} 17... Bd6 {[%clk 0:07:12]} 18. Be3
{[%clk 0:08:52.7]} 18... c5 {[%clk 0:06:36.5]} 19. Qb3 {[%clk 0:08:29.1]} 19...
Be5 {[%clk 0:06:31.5]} 20. c3 {[%clk 0:08:13.5]} 20... Qc7 {[%clk 0:06:31.5]}
21. g3 {[%clk 0:07:59.2]} 21... Bc6 {[%clk 0:04:37.7]} 22. Qc2 {[%clk
0:07:47.5]} 22... Rxd1 {[%clk 0:04:33.2]} 23. Qxd1 {[%clk 0:07:38.3]} 23... Rd8
{[%clk 0:04:32.1]} 24. Qe2 {[%clk 0:07:35.8]} 24... Qd7 {[%clk 0:04:19.8]} 25.
Qf1 {[%clk 0:07:01.8]} 25... Qd3 {[%clk 0:04:10.2]} 26. Qg2 {[%clk 0:06:50.9]}
26... Qc2 {[%clk 0:03:56.6]} 27. Bc1 {[%clk 0:06:11]} 27... Bb5 {[%clk
0:03:44.6]} 28. h4 {[%clk 0:05:59.9]} 28... Bxc3 {[%clk 0:02:47.9]} 29. bxc3
{[%clk 0:05:52.8]} 29... Qxc3 {[%clk 0:02:36.9]} 30. Re3 {[%clk 0:03:24.2]}
30... Qxc1+ {[%clk 0:02:35.5]} 31. Kh2 {[%clk 0:03:24.3]} 31... Rd2 {[%clk
0:02:25.5]} 32. e5 {[%clk 0:02:55.5]} 32... Qb2 {[%clk 0:02:16.8]} 33. Kg1
{[%clk 0:02:24.7]} 33... c4 {[%clk 0:01:45.5]} 34. Re1 {[%clk 0:01:18.4]} 34...
c3 {[%clk 0:01:42.6]} 35. Bc6 {[%clk 0:01:05.1]} 35... Rxf2 {[%clk 0:01:24]} 36.
Qe4 {[%clk 0:00:54.6]} 36... Rd2 {[%clk 0:00:24.7]} 37. Bxb5 {[%clk 0:00:48.9]}
37... Qxb5 {[%clk 0:00:25.3]} 38. Qa8+ {[%clk 0:00:47.5]} 38... Kh7 {[%clk
0:00:25]} 39. Qe4+ {[%clk 0:00:47.5]} 39... g6 {[%clk 0:00:27.4]} 40. Qf3 {[%clk
0:00:40.7]} 40... Qc5+ {[%clk 0:00:27.3]} 41. Kh1 {[%clk 0:00:32.9]} 41... Qd5
{[%clk 0:00:25.7]} 42. Qxd5 {[%clk 0:00:31.7]} 42... exd5 {[%clk 0:00:27.6]} 43.
Kg1 {[%clk 0:00:13.9]} 43... c2 {[%clk 0:00:26.7]} 44. Kf1 {[%clk 0:00:06.9]}
44... d4 {[%clk 0:00:25.3]} 0-1

[Event "Rapid del Mercoledì"]
[Site "Chess.com"]
[Date "2020.04.29"]
[Round "2"]
[White "moha1812med"]
[Black "SanSecondoPR"]
[Result "0-1"]
[WhiteElo "976"]
[BlackElo "1251"]
[TimeControl "720+3"]
[EndTime "12:04:35 PDT"]
[Termination "SanSecondoPR ha vinto per abbandono"]

1. d4 {[%clk 0:12:02.9]} 1... d5 {[%clk 0:12:00]} 2. c4 {[%clk 0:12:02]} 2... e5
{[%clk 0:12:00.9]} 3. e3 {[%clk 0:11:46]} 3... Bb4+ {[%clk 0:11:25.6]} 4. Bd2
{[%clk 0:11:41.6]} 4... Nc6 {[%clk 0:11:23.6]} 5. Bxb4 {[%clk 0:11:27.9]} 5...
Nxb4 {[%clk 0:11:22.8]} 6. Qa4+ {[%clk 0:11:29.5]} 6... Nc6 {[%clk 0:11:24]} 7.
Nf3 {[%clk 0:11:10.4]} 7... e4 {[%clk 0:11:21]} 8. Ne5 {[%clk 0:11:10.1]} 8...
Ne7 {[%clk 0:11:19.5]} 9. cxd5 {[%clk 0:11:04.8]} 9... Qxd5 {[%clk 0:11:11]} 10.
Nxc6 {[%clk 0:10:58.7]} 10... Nxc6 {[%clk 0:11:09.4]} 11. Bc4 {[%clk 0:10:55.6]}
11... Qg5 {[%clk 0:11:01.6]} 12. d5 {[%clk 0:10:45.4]} 12... Qxg2 {[%clk
0:10:58.3]} 13. dxc6 {[%clk 0:10:35.6]} 13... Qxh1+ {[%clk 0:10:54.5]} 14. Ke2
{[%clk 0:10:29.7]} 14... Bg4+ {[%clk 0:10:48]} 15. Kd2 {[%clk 0:10:28.9]} 15...
O-O-O+ {[%clk 0:10:43.5]} 16. Kc3 {[%clk 0:10:09.5]} 16... Qe1+ {[%clk
0:10:39.7]} 17. Nd2 {[%clk 0:10:06.5]} 17... Qxd2+ {[%clk 0:10:35.7]} 18. Kb3
{[%clk 0:10:05.4]} 0-1

[Event "Rapid del Mercoledì"]
[Site "Chess.com"]
[Date "2020.04.29"]
[Round "2"]
[White "Delsoldato03"]
[Black "paolo58pr"]
[Result "1-0"]
[WhiteElo "1269"]
[BlackElo "1023"]
[TimeControl "720+3"]
[EndTime "12:05:31 PDT"]
[Termination "Delsoldato03 ha vinto per abbandono"]

1. e4 {[%clk 0:12:02.9]} 1... c5 {[%clk 0:11:59.1]} 2. Nf3 {[%clk 0:12:04.3]}
2... d6 {[%clk 0:12:00.8]} 3. d4 {[%clk 0:12:05.6]} 3... cxd4 {[%clk 0:12:01.2]}
4. Nxd4 {[%clk 0:12:08]} 4... Nf6 {[%clk 0:12:01.7]} 5. Nc3 {[%clk 0:12:09.9]}
5... e5 {[%clk 0:11:58.3]} 6. Nb3 {[%clk 0:12:00.5]} 6... Be7 {[%clk 0:11:57.8]}
7. Bg5 {[%clk 0:11:47.9]} 7... h6 {[%clk 0:11:58.2]} 8. Bxf6 {[%clk 0:11:45.6]}
8... Bxf6 {[%clk 0:11:58.8]} 9. Nd5 {[%clk 0:11:41.6]} 9... Nc6 {[%clk
0:11:54.3]} 10. Qf3 {[%clk 0:11:19]} 10... O-O {[%clk 0:11:52.2]} 11. Nxf6+
{[%clk 0:11:10.9]} 11... Qxf6 {[%clk 0:11:52.6]} 12. Qxf6 {[%clk 0:11:11.7]}
12... gxf6 {[%clk 0:11:54.3]} 13. f3 {[%clk 0:10:58.1]} 13... Be6 {[%clk
0:11:47.7]} 14. O-O-O {[%clk 0:10:45.7]} 14... Rfd8 {[%clk 0:11:39.2]} 15. Be2
{[%clk 0:10:25.6]} 15... Rac8 {[%clk 0:11:37.7]} 16. Rd2 {[%clk 0:10:20.8]}
16... Bxb3 {[%clk 0:11:28.1]} 17. axb3 {[%clk 0:10:15.5]} 17... Nd4 {[%clk
0:11:29.1]} 18. Bc4 {[%clk 0:10:09.8]} 18... a6 {[%clk 0:11:26.1]} 19. Rhd1
{[%clk 0:10:06.8]} 19... b5 {[%clk 0:11:24]} 20. Bd5 {[%clk 0:09:41.9]} 20...
Rc7 {[%clk 0:11:07.4]} 21. c3 {[%clk 0:09:34.4]} 21... Ne6 {[%clk 0:11:03]} 22.
Bxe6 {[%clk 0:09:31]} 22... fxe6 {[%clk 0:11:03.9]} 23. Rxd6 {[%clk 0:09:32]}
23... b4 {[%clk 0:11:04.1]} 24. Rxd8+ {[%clk 0:09:29.7]} 24... Kf7 {[%clk
0:10:57.9]} 25. R1d7+ {[%clk 0:09:28.9]} 1-0